bitfinex/quotes_ETHUSD_20251006
["timestamp","ask_amount","ask_price","bid_price","bid_amount"]
[1759710537078,2.6942,4512.2,4512.1,0.1092]
[1759710537374,2.6942,4512.2,4512.1,0.011]
[1759710537882,0.1112,4512.2,4512.1,0.011]
[1759710538085,2.6942,4512.2,4512.1,0.011]
[1759710539058,0.1112,4512.2,4512.1,0.1092]
[1759710539265,2.6942,4512.2,4512.1,0.1092]
[1759710539678,0.1112,4512.2,4512.1,0.1092]
[1759710539843,0.333,4512.4,4512.1,0.1092]
[1759710540048,0.333,4512.4,4512.2,2.31441382]
[1759710540363,0.333,4512.4,4512.3,0.23254138]
[1759710540696,0.333,4512.4,4512.1,0.011]
[1759710540697,0.4442,4512.4,4512.1,0.011]
[1759710540983,0.1112,4512.4,4512.3,0.0982]
[1759710541358,1.1452,4512.4,4512.3,0.0982]
[1759710542072,1.1452,4512.4,4512.3,2.3143647]
[1759710542381,1.1452,4512.4,4512.3,0.0982]
[1759710542561,1.1452,4512.4,4512.3,0.33074013]
[1759710542762,1.034,4512.4,4512.3,2.73074013]
[1759710542971,1.911,4512.6,4512.3,0.33074013]
[1759710543173,1.911,4512.6,4512.1,0.011]
[1759710543371,1.911,4512.6,4512.1,0.1092]
[1759710543762,1.911,4512.6,4512.1,0.011]
[1759710543991,0.02208935,4512.5,4512.1,0.011]
[1759710544359,0.6336,4512.3,4512.1,0.011]
[1759710544580,1.26653663,4512.2,4512.1,0.011]
[1759710544892,6.24853663,4512.2,4512.1,0.011]
[1759710545061,6.22644728,4512.2,4512.1,0.011]
[1759710546051,3.64444728,4512.2,4512.1,0.011]
[1759710546255,6.24853663,4512.2,4512.1,0.011]
[1759710546468,6.22644728,4512.2,4512.1,0.011]
[1759710547184,10.4012611,4512.2,4512.1,0.011]
[1759710547391,8.18504728,4512.2,4512.1,0.011]
[1759710548790,10.4012611,4512.2,4512.1,0.011]
[1759710549090,8.18504728,4512.2,4512.1,0.011]
[1759710549299,10.4012611,4512.2,4512.1,0.011]
[1759710549801,8.18504728,4512.2,4512.1,0.011]
[1759710550160,4.27804728,4512.2,4512.1,0.011]
[1759710550494,9.09835045,4512.2,4512.1,0.011]
[1759710550698,9.0762611,4512.2,4512.1,0.011]
[1759710550906,6.86004728,4512.2,4512.1,0.011]
[1759710551079,9.0762611,4512.2,4512.1,0.011]
[1759710551788,6.86004728,4512.2,4512.1,0.011]
[1759710552593,4.46004728,4512.2,4512.1,0.011]
[1759710552781,4.57124728,4512.2,4512.1,0.011]
[1759710553186,1.54274728,4512.2,4512.1,0.011]
[1759710553388,4.59333663,4512.2,4512.1,0.011]
[1759710553585,4.57124728,4512.2,4512.1,0.011]
[1759710553764,4.12474728,4512.2,4512.1,0.011]
[1759710554093,0.93123663,4512.2,4512.1,0.011]
[1759710554392,3.36734958,4512.2,4512.1,0.011]
[1759710555910,0.33884958,4512.2,4512.1,0.011]
[1759710556123,2.92084958,4512.2,4512.1,0.011]
[1759710556834,3.36734958,4512.2,4512.1,0.011]
[1759710557421,2.92084958,4512.2,4512.1,0.011]
[1759710557600,3.45293454,4512.2,4512.1,0.011]
[1759710557802,2.92084958,4512.2,4512.1,0.011]
[1759710558620,0.33884958,4512.2,4512.1,0.011]
[1759710558819,0.31676023,4512.2,4512.1,0.011]
[1759710559023,2.89876023,4512.2,4512.1,0.011]
[1759710559298,3.19084519,4512.2,4512.1,0.011]
[1759710559529,2.89876023,4512.2,4512.1,0.1092]
[1759710559715,0.1112,4512.2,4512.1,0.1092]
[1759710559914,2.6932,4512.2,4512.1,0.1092]
[1759710560128,0.1112,4512.2,4512.1,0.1092]
[1759710560405,2.582,4512.2,4512.1,0.1092]
[1759710560635,0.1112,4512.5,4512.1,0.35287084]
[1759710560910,0.131,4512.6,4512.2,2.31441382]
[1759710561240,0.131,4512.6,4512.2,2.42561382]
[1759710561448,0.131,4512.6,4512.3,0.0982]
[1759710561729,0.002,4512.6,4512.5,2.21606648]
[1759710561929,0.002,4512.6,4512.5,2.31426648]
[1759710562949,0.002,4512.6,4512.5,4.71426648]
[1759710563099,0.002,4512.6,4512.5,4.82546648]
[1759710563302,0.002,4512.6,4512.5,5.55399516]
[1759710565626,0.002,4512.6,4512.5,6.07639516]
[1759710566221,0.002,4512.6,4512.5,34.79871416]
[1759710566415,0.002,4512.6,4512.5,35.08120616]
[1759710566623,0.002,4512.6,4512.5,35.71042916]
[1759710566924,0.002,4512.6,4512.5,35.87658016]
[1759710567130,0.002,4512.6,4512.5,35.99289616]
[1759710567326,0.002,4512.6,4512.5,36.43746349]
[1759710567738,0.002,4512.6,4512.5,21.36742749]
[1759710567937,0.002,4512.6,4512.5,3.04279516]
[1759710568921,0.002,4512.6,4512.5,3.06495582]
[1759710569121,0.002,4512.6,4512.5,25.11611716]
[1759710569323,0.002,4512.6,4512.5,32.02105516]
[1759710570127,0.002,4512.6,4512.5,33.22327416]
[1759710570519,0.002,4512.6,4512.5,32.68597416]
[1759710571147,0.002,4512.6,4512.5,20.57639516]
[1759710571553,0.002,4512.6,4512.5,35.03526916]
[1759710572373,0.002,4512.6,4512.5,50.57639516]
[1759710573061,0.002,4512.6,4512.5,29.27576316]
[1759710573257,0.002,4512.6,4512.5,38.64293416]
[1759710574162,0.002,4512.6,4512.5,39.43196061]
[1759710574365,0.002,4512.6,4512.5,51.36542161]
[1759710574552,0.002,4512.6,4512.5,35.33062961]
[1759710575361,0.002,4512.6,4512.5,51.36542161]
[1759710575548,0.002,4512.6,4512.5,50.57639516]
[1759710575748,0.002,4512.6,4512.5,50.68759516]
[1759710575972,0.002,4513.2,4513.1,2.84937186]
[1759710576172,0.002,4513.2,4513.1,8.27752333]
[1759710576539,0.002,4513.2,4513.1,22.87572333]
[1759710576871,0.002,4513.2,4513.1,43.86003733]
[1759710577062,0.002,4513.2,4513.1,40.81013533]
[1759710577377,0.002,4513.2,4513.1,40.91934892]
[1759710577743,0.002,4513.2,4513.1,39.86190392]
[1759710577967,0.002,4513.2,4513.1,40.14453092]
[1759710578268,1e-08,4514.1,4514.0,5.24893008]
[1759710578446,1e-08,4514.1,4514.0,8.55645876]
[1759710579891,1e-08,4514.1,4514.0,8.65465876]
[1759710580185,1e-08,4514.1,4514.0,53.05645876]
[1759710580488,1e-08,4514.1,4514.0,25.70966476]
[1759710581260,0.45583959,4515.4,4514.2,0.6336]
[1759710581460,0.45583959,4515.4,4515.2,2.21473327]
[1759710581867,1.23,4515.6,4515.2,2.21473327]
[1759710582060,2.46,4515.6,4515.2,2.21473327]
[1759710582414,2.46,4515.6,4514.9,2.21488129]
[1759710582688,2.46,4515.6,4515.0,0.47938813]
[1759710582896,2.46,4515.6,4515.1,2.21479037]
[1759710583094,2.46,4515.6,4515.0,0.47938813]
[1759710583269,0.466,4515.5,4513.5,0.78902645]
[1759710583470,0.78068935,4515.4,4513.6,2.579]
[1759710583666,0.466,4515.3,4514.1,2.21527561]
[1759710583989,0.02208935,4515.2,4514.0,2.21532765]
[1759710584293,0.02208935,4515.2,4513.7,2.21546764]
[1759710584294,0.466,4515.1,4514.2,2.21519053]
[1759710584601,0.466,4515.0,4513.7,2.4]
[1759710584762,0.2926,4515.4,4514.0,2.21532997]
[1759710584763,0.466,4514.9,4514.0,2.21532997]
[1759710584963,0.466,4514.8,4513.8,0.4979]
[1759710585164,0.466,4514.8,4514.2,2.2152303]
[1759710585461,0.466,4514.7,4514.2,2.2152303]
[1759710585692,0.466,4514.6,4514.2,2.78361045]
[1759710585866,0.466,4514.5,4514.2,2.78361045]
[1759710586066,0.466,4514.4,4514.2,2.78361045]
[1759710586279,0.02208935,4515.5,4514.2,2.78361045]
[1759710586480,0.466,4514.3,4514.2,4.6152303]
[1759710586682,0.466,4514.3,4513.1,2.22576868]
[1759710586884,0.466,4514.2,4513.4,2.21558135]
[1759710587118,0.466,4514.1,4513.1,2.588]
[1759710587282,0.466,4514.1,4513.4,2.21562458]
[1759710587476,0.466,4514.1,4513.2,2.6588]
[1759710588106,0.466,4514.1,4513.7,0.1104]
[1759710588389,0.466,4514.0,4513.7,0.1104]
[1759710588596,0.466,4513.9,4513.7,0.1104]
[1759710588778,0.1104,4514.3,4513.7,0.1104]
[1759710588979,0.466,4513.8,4513.2,2.47451977]
[1759710589191,0.466,4513.8,4513.4,0.1104]
[1759710589403,0.466,4513.7,4513.4,2.32600628]
[1759710589728,0.5764,4514.0,4513.5,2.21553306]
[1759710589933,0.466,4513.9,4513.5,2.21553306]
[1759710590082,0.466,4513.8,4513.6,2.21552125]
[1759710590281,0.466,4513.8,4513.4,0.1104]
[1759710590282,0.466,4513.8,4513.5,2.21556996]
[1759710590482,0.466,4514.7,4513.9,2.21537916]
[1759710590698,0.466,4514.7,4513.6,0.02215526]
[1759710590699,0.1104,4514.4,4513.7,2.3258329]
[1759710590917,0.1104,4514.4,4513.7,0.1104]
[1759710591090,0.1124,4514.4,4514.1,2.21526947]
[1759710591983,0.466,4514.3,4513.7,2.32587495]
[1759710592183,0.466,4514.3,4514.0,2.21532326]
[1759710592485,0.002,4514.4,4514.3,2.21518286]
[1759710592720,0.002,4514.4,4514.1,2.21523765]
[1759710593032,0.002,4514.4,4514.3,2.21518286]
[1759710593584,0.002,4514.4,4514.0,2.32571782]
[1759710594101,0.468,4514.4,4514.0,0.1104]
[1759710594487,0.468,4514.4,4514.0,0.36885686]
[1759710595007,0.468,4514.4,4514.1,2.215281]
[1759710595912,0.468,4514.4,4514.0,0.36885686]
[1759710596116,0.468,4514.4,4514.3,2.21518286]
[1759710596317,0.002,4514.4,4514.3,2.21518286]
[1759710596492,0.002,4514.4,4514.3,2.57337798]
[1759710596684,0.002,4514.4,4514.3,2.5955298]
[1759710596893,0.002,4514.4,4514.3,5.60697798]
[1759710597195,0.002,4514.4,4514.3,5.71527798]
[1759710597388,0.002,4514.4,4514.3,6.50430443]
[1759710597588,0.002,4514.4,4514.3,5.71527798]
[1759710597803,0.002,4514.4,4514.3,6.50430443]
[1759710598396,4.92,4515.6,4515.3,2.21469226]
[1759710598596,4.92,4515.6,4515.2,2.21473838]
[1759710598797,4.92,4515.6,4515.3,0.1104]
[1759710599001,4.92,4515.6,4515.3,2.32509226]
[1759710600332,0.468,4515.4,4514.3,2.64779512]
[1759710600490,0.466,4515.3,4514.7,2.21496505]
[1759710600832,0.466,4515.2,4514.7,0.1104]
[1759710601039,0.02208935,4515.1,4513.9,2.21537295]
[1759710601191,0.1104,4514.5,4514.0,0.0221533]
[1759710601416,0.002,4515.4,4514.0,0.0221533]
[1759710601634,0.466,4515.0,4514.1,2.65991533]
[1759710601835,0.466,4514.9,4513.6,0.78902645]
[1759710602046,0.67253605,4514.8,4513.3,0.78902645]
[1759710602227,2.59908935,4514.9,4513.5,2.4]
[1759710602228,0.6946254,4514.7,4513.5,2.4]
[1759710602430,3.043,4514.7,4513.7,2.21547732]
[1759710602746,0.46458935,4514.6,4513.6,0.31890264]
[1759710602951,0.4425,4514.6,4513.8,2.21541073]
[1759710603252,0.4425,4514.6,4513.3,3.18902645]
[1759710603253,0.64903133,4514.5,4513.3,3.18902645]
[1759710603415,0.4425,4514.4,4513.2,3.18902645]
[1759710603621,0.02208935,4514.6,4513.2,3.18902645]
[1759710603625,0.4425,4514.3,4513.6,2.21548521]
[1759710603848,0.02208935,4514.6,4513.3,2.4]
[1759710604048,0.4425,4514.2,4513.5,2.21553374]
[1759710604220,0.4425,4514.2,4513.6,2.4]
[1759710604553,0.4425,4514.2,4513.8,2.2154171]
[1759710604723,0.02208935,4514.6,4513.4,0.541473]
[1759710604923,0.4425,4514.1,4513.3,2.4]
[1759710605146,0.4425,4514.1,4513.6,2.21549812]
[1759710605452,0.4425,4514.1,4513.5,2.2155746]
[1759710605654,0.46458935,4514.0,4513.1,0.01]
[1759710605865,0.46458935,4514.0,4513.1,2.2257709]
[1759710606019,0.46458935,4514.0,4513.1,2.44834799]
[1759710606020,0.4425,4513.9,4513.1,2.44834799]
[1759710606214,0.4425,4513.8,4513.1,0.23257709]
[1759710606417,3.0195,4514.2,4513.2,0.02215722]
[1759710606672,3.0195,4514.2,4513.2,2.21571521]
[1759710606868,0.64906046,4514.1,4513.1,0.01]
[1759710607018,0.4425,4514.1,4513.1,2.22576364]
[1759710607357,0.4425,4514.1,4513.4,2.21560201]
[1759710607721,0.46458935,4514.0,4513.1,0.01]
[1759710608025,0.20651086,4513.9,4513.1,0.01]
[1759710608417,0.4425,4513.8,4513.1,0.01]
[1759710608885,0.22856306,4513.7,4513.1,0.01]
[1759710609182,2.577,4513.6,4513.1,0.01]
[1759710609486,0.22856306,4513.5,4513.3,0.001]
[1759710609633,2.80556306,4513.5,4513.3,0.001]
[1759710609833,2.577,4513.4,4513.3,0.001]
[1759710610071,3.0195,4513.4,4513.3,0.001]
[1759710610455,25.0,4515.0,4513.3,0.001]
[1759710610773,0.4425,4513.8,4513.3,0.001]
[1759710610930,2.577,4513.7,4513.3,0.001]
[1759710611131,0.4425,4514.0,4513.3,0.001]
[1759710611347,0.1104,4513.7,4513.3,0.001]
[1759710611545,0.1104,4513.7,4513.3,2.21666454]
[1759710611861,2.577,4513.9,4513.4,0.4442429]
[1759710612070,3.0195,4513.9,4513.4,0.4442429]
[1759710612366,0.02208935,4514.7,4513.5,2.21557106]
[1759710612531,0.4425,4514.6,4513.3,0.001]
[1759710612733,2.577,4514.5,4513.7,2.21546736]
[1759710612935,2.577,4514.5,4513.7,2.21546513]
[1759710613230,0.02208935,4514.9,4514.3,2.21516555]
[1759710613465,0.02208935,4514.9,4513.8,0.22154651]
[1759710613466,25.0,4515.0,4514.4,0.02215133]
[1759710613669,25.0,4515.0,4514.2,0.1083]
[1759710613936,3.0195,4514.9,4513.9,0.78902645]
[1759710614142,2.577,4514.9,4514.0,2.4]
[1759710614337,0.4425,4514.8,4513.5,3.18902645]
[1759710614572,2.59908935,4514.9,4513.3,3.19002645]
[1759710614573,0.46458935,4514.7,4513.3,3.19002645]
[1759710614869,0.46458935,4514.7,4514.1,2.21527547]
[1759710615038,0.46458935,4514.7,4513.6,2.21548243]
[1759710615243,0.46458935,4514.7,4513.8,2.21542198]
[1759710615437,3.0185,4514.6,4513.7,0.68310918]
[1759710615638,0.46458935,4514.5,4513.3,2.401]
[1759710615832,0.46458935,4514.5,4513.9,2.2153776]
[1759710616077,25.4425,4515.0,4514.0,0.0221533]
[1759710616266,28.0185,4515.0,4514.3,2.21513877]
[1759710616497,28.0185,4515.0,4514.1,2.215281]
[1759710616498,25.0,4515.0,4514.4,0.46519331]
[1759710616662,25.0,4515.0,4514.4,0.02215133]
[1759710616864,25.0,4515.0,4514.3,2.21513737]
[1759710617064,25.0,4515.0,4514.3,2.21518286]
[1759710617373,25.0,4515.0,4514.5,2.21507006]
[1759710617778,25.0,4515.0,4513.9,3.18902645]
[1759710617980,25.0,4515.0,4514.5,2.21505173]
[1759710618182,25.0,4515.0,4514.0,0.7804417]
[1759710618369,25.0,4515.0,4514.1,2.4]
[1759710618574,0.4425,4514.9,4513.8,0.78902645]
[1759710618777,25.0,4515.0,4513.5,0.78902645]
[1759710618778,2.25439023,4514.8,4513.5,0.78902645]
[1759710619015,0.4425,4514.7,4513.3,5.4056924]
[1759710619214,0.02208935,4514.6,4513.3,5.4056924]
[1759710619366,0.02208935,4514.6,4513.3,3.19002645]
[1759710619705,2.576,4514.5,4513.6,2.21551875]
[1759710619905,2.576,4514.5,4513.3,3.19002645]
[1759710620096,2.576,4514.5,4513.6,2.21552569]
[1759710620281,2.576,4514.5,4513.4,0.57770264]
[1759710621006,2.576,4514.5,4513.7,2.2154745]
[1759710621204,2.576,4514.5,4513.4,0.57770264]
[1759710621405,0.4425,4514.4,4513.3,0.001]
[1759710621561,0.2064835,4514.3,4513.3,0.001]
[1759710621894,0.1,4513.5,4513.3,0.001]
[1759710622298,0.1104,4513.5,4513.3,0.02315673]
[1759710622500,0.02208935,4514.8,4513.3,0.02315673]
[1759710622501,0.1104,4514.0,4513.9,2.21537916]
[1759710622679,2.576,4514.5,4514.0,2.21532721]
[1759710622878,0.1104,4514.4,4514.0,2.21532721]
[1759710623203,0.1104,4514.4,4513.8,0.1104]
[1759710623500,2.576,4514.8,4513.7,2.21547732]
[1759710623664,2.576,4514.8,4513.6,0.1083]
[1759710623665,2.576,4514.8,4514.2,0.1104]
[1759710623867,2.576,4514.8,4514.6,2.21499564]
[1759710624068,2.6864,4514.9,4514.2,0.1104]
[1759710624307,2.576,4514.9,4513.8,2.71128038]
[1759710624481,2.576,4514.9,4514.6,2.21498663]
[1759710624680,2.576,4514.9,4514.5,0.1104]
[1759710624865,2.576,4514.9,4513.8,0.78902645]
[1759710624866,0.46458935,4514.8,4513.8,0.78902645]
[1759710625066,0.46458935,4514.8,4513.3,0.001]
[1759710625067,0.1104,4514.3,4513.6,0.1104]
[1759710625266,2.576,4514.2,4513.7,2.2154754]
[1759710625869,2.576,4514.2,4513.8,2.21541489]
[1759710626367,0.1104,4514.3,4513.6,0.1104]
[1759710626568,0.1104,4514.6,4514.1,2.21524166]
[1759710626800,0.1104,4514.6,4514.0,0.1104]
[1759710627499,25.0,4515.0,4513.9,5.40440561]
[1759710627500,25.4425,4515.0,4513.9,5.40440561]
[1759710627682,25.4425,4515.0,4514.3,2.21518042]
[1759710628000,2.575,4514.9,4514.6,2.21502798]
[1759710628205,2.575,4514.9,4514.0,0.78902645]
[1759710628816,2.575,4514.9,4514.6,2.21501954]
[1759710629016,2.575,4514.9,4514.1,2.94044153]
[1759710629172,2.575,4514.9,4514.3,2.21518286]
[1759710629380,2.575,4514.9,4514.1,2.94044153]
[1759710629381,25.002,4515.0,4514.7,2.21498305]
[1759710629693,2.575,4514.9,4514.7,2.21498305]
[1759710629874,25.002,4515.0,4514.9,2.21488848]
[1759710630076,27.577,4515.0,4514.9,2.21488848]
[1759710630412,25.002,4515.0,4514.9,2.21488848]
[1759710630572,25.002,4515.0,4514.9,2.65787367]
[1759710630900,25.002,4515.0,4514.9,2.21488848]
[1759710631105,25.002,4515.0,4514.3,0.78902645]
[1759710631303,25.002,4515.0,4514.4,0.78902645]
[1759710631504,25.002,4515.0,4514.9,2.21488848]
[1759710631892,25.002,4515.0,4514.9,2.65787585]
[1759710632081,25.002,4515.0,4514.9,0.44298737]
[1759710632286,25.4445,4515.0,4514.3,0.78902645]
[1759710632497,28.0195,4515.0,4514.5,2.21503779]
[1759710632678,0.444,4514.9,4514.6,2.21502429]
[1759710632874,0.444,4514.9,4514.3,3.00419984]
[1759710632875,0.444,4514.9,4514.3,0.78902645]
[1759710633098,25.002,4515.0,4514.3,0.78902645]
[1759710633404,25.002,4515.0,4514.9,2.21488848]
[1759710633910,25.002,4515.0,4514.6,2.21503566]
[1759710634126,25.002,4515.0,4514.2,0.78902645]
[1759710634280,25.458,4515.0,4514.2,2.4]
[1759710634482,25.458,4515.0,4514.3,2.21518286]
[1759710634803,25.458,4515.0,4514.6,2.2149967]
[1759710635005,25.002,4515.0,4514.7,0.02214986]
[1759710635205,27.577,4515.0,4514.9,2.21488848]
[1759710635414,25.002,4515.0,4514.9,2.21488848]
[1759710636376,25.002,4515.0,4514.9,2.23703736]
[1759710636576,25.002,4515.0,4514.9,2.21488848]
[1759710636810,25.002,4515.0,4514.9,4.72318848]
[1759710637414,25.002,4515.0,4514.9,4.83358848]
[1759710637634,17.99450726,4515.0,4514.9,5.46718848]
[1759710637780,17.99450726,4515.0,4514.9,6.25621493]
[1759710637980,17.99450726,4515.0,4514.9,4.72528848]
[1759710638399,0.002,4515.4,4515.1,2.21479037]
[1759710638609,4.92,4515.6,4515.5,2.84819417]
[1759710638610,1e-08,4515.6,4515.5,2.84819417]
[1759710638932,1e-08,4515.9,4515.8,5.24804705]
[1759710639135,1e-08,4515.9,4515.8,8.61474474]
[1759710639301,1e-08,4515.9,4515.8,5.51754474]
[1759710639503,0.45600001,4515.9,4515.6,0.79269769]
[1759710639724,0.456,4515.8,4515.5,0.1104]
[1759710639924,1e-08,4515.9,4515.5,0.1104]
[1759710640235,0.456,4515.8,4515.5,0.1104]
[1759710640405,0.456,4515.7,4515.5,0.1104]
[1759710640601,1.23000001,4515.9,4515.5,0.1104]
[1759710640806,0.456,4515.8,4515.5,0.1104]
[1759710641003,0.456,4515.8,4515.1,2.4]
[1759710641004,2.574,4515.7,4515.1,2.4]
[1759710641209,0.456,4515.6,4515.2,0.1104]
[1759710641525,1.23000001,4515.9,4515.3,0.75207009]
[1759710641698,1.23000001,4515.9,4515.5,0.1104]
[1759710641902,1.23,4515.7,4515.5,0.1104]
[1759710642103,1.23,4515.7,4515.2,2.574]
[1759710642104,1.23,4515.7,4515.6,2.21453472]
[1759710642332,1.23,4515.7,4515.6,7.82213472]
[1759710642501,1.23,4515.7,4515.6,7.93253472]
[1759710642703,1.23,4515.7,4515.6,8.04083472]
[1759710643109,1.23,4515.7,4515.6,7.29893472]
[1759710643312,1.23,4515.7,4515.6,7.93253472]
[1759710643715,2.46,4515.7,4515.6,7.93253472]
[1759710644440,2.46,4515.7,4515.6,5.718]
[1759710644637,2.46,4515.7,4515.6,7.93254513]
[1759710645145,3.69,4515.7,4515.6,7.93254513]
[1759710645730,3.69,4515.7,4515.6,23.16015582]
[1759710646035,3.69,4515.7,4515.6,22.07702213]
[1759710646350,1.23000001,4515.9,4515.8,0.6336]
[1759710646561,1.23000001,4515.9,4515.8,15.78873305]
[1759710646762,1.23000001,4515.9,4515.8,16.91780305]
[1759710646963,1.23000001,4515.9,4515.8,5.24804705]
[1759710647259,1.23000001,4515.9,4515.8,8.61227049]
[1759710647451,1.23000001,4515.9,4515.8,8.03941805]
[1759710647773,2.46000001,4515.9,4515.8,14.57541405]
[1759710648062,2.46000001,4515.9,4515.8,13.28912705]
[1759710648436,2.46000001,4515.9,4515.8,13.18082705]
[1759710648637,2.46000001,4515.9,4515.8,9.60735505]
[1759710648862,2.46000001,4515.9,4515.8,3.30163105]
[1759710649161,3.69000001,4515.9,4515.8,4.72484705]
[1759710649984,4.14600001,4515.9,4515.8,4.72484705]
[1759710650129,4.14600001,4515.9,4515.8,2.5104]
[1759710650459,4.92000001,4515.9,4515.8,2.5104]
[1759710650966,4.92000001,4515.9,4515.8,4.72484705]
[1759710651335,4.92000001,4515.9,4515.8,2.5104]
[1759710651530,5.37600001,4515.9,4515.8,2.4]
[1759710652063,6.60600001,4515.9,4515.8,4.61444705]
[1759710652368,6.15000001,4515.9,4515.8,4.61444705]
[1759710652554,6.15000001,4515.9,4515.8,5.40774389]
[1759710653066,6.15000001,4515.9,4515.8,6.83257494]
[1759710653450,7.38000001,4515.9,4515.8,6.83257494]
[1759710653653,7.38000001,4515.9,4515.8,6.04134389]
[1759710654234,7.38000001,4515.9,4515.8,30.11941089]
[1759710654564,7.38000001,4515.9,4515.8,14.98046789]
[1759710654865,8.61000001,4515.9,4515.8,16.16420566]
[1759710655068,8.61000001,4515.9,4515.8,14.98046789]
[1759710655243,8.61000001,4515.9,4515.8,19.36472189]
[1759710655437,8.61000001,4515.9,4515.8,18.41161089]
[1759710655638,4.47524439,4515.9,4515.8,18.41161089]
[1759710655833,4.47524439,4515.9,4515.8,13.00162289]
[1759710656065,4.47524439,4515.9,4515.8,11.00113789]
[1759710656241,5.70524439,4515.9,4515.8,14.53373789]
[1759710656570,11.07200001,4516.2,4516.1,2.84789994]
[1759710656759,11.07200001,4516.2,4516.1,18.84775925]
[1759710657067,11.07200001,4516.2,4516.1,18.83693425]
[1759710657254,11.07200001,4516.2,4516.1,9.50173058]
[1759710657669,12.30200001,4516.2,4516.1,21.06231558]
[1759710657853,12.30200001,4516.2,4516.1,16.05817225]
[1759710658452,12.30200001,4516.2,4516.1,18.20941825]
[1759710659173,13.53200001,4516.2,4516.1,19.39746558]
[1759710659336,13.53200001,4516.2,4516.1,25.44887158]
[1759710659662,13.53200001,4516.2,4516.1,24.96525758]
[1759710660072,1.696,4517.9,4516.2,3.0336]
[1759710660284,1.24,4517.9,4517.1,6.03990595]
[1759710660436,1.24,4517.9,4517.1,26.17762305]
[1759710660636,1.24,4517.9,4517.1,26.10063505]
[1759710660835,1.24,4517.9,4517.1,25.34846336]
[1759710661072,1.24,4517.9,4517.1,22.09098367]
[1759710661446,1.24,4517.9,4517.1,38.74666567]
[1759710661646,1.232,4517.2,4517.1,17.54610167]
[1759710661850,1.688,4517.2,4517.1,6.15873915]
[1759710662046,1.688,4517.2,4517.1,2.571]
[1759710662865,1.688,4517.2,4517.1,4.971]
[1759710663068,1.688,4517.2,4516.5,0.79196727]
[1759710663267,0.4355,4517.1,4516.8,2.21394038]
[1759710663460,0.4355,4517.1,4516.9,2.4]
[1759710663656,0.4355,4517.0,4516.8,2.4]
[1759710663869,0.4355,4517.0,4516.6,2.571]
[1759710664060,0.4355,4516.9,4516.7,2.4]
[1759710664369,2.462,4517.2,4516.7,2.4]
[1759710664370,0.4355,4516.8,4516.7,2.4]
[1759710664568,0.4355,4516.8,4516.7,5.19030253]
[1759710664772,1.23,4517.1,4517.0,2.21385875]
[1759710664939,1.23,4517.1,4517.0,7.18485875]
[1759710665538,1.6655,4517.1,4517.0,4.971]
[1759710665779,1.6655,4517.1,4516.5,0.79196727]
[1759710665960,1.23,4516.8,4516.6,2.4]
[1759710666151,1.23,4516.8,4516.6,4.971]
[1759710666353,0.4355,4516.7,4516.6,7.18505157]
[1759710666762,0.4355,4516.7,4516.6,4.971]
[1759710667277,0.4355,4516.7,4516.6,2.4]
[1759710667580,1.23,4516.8,4516.6,2.4]
[1759710667748,1.23,4516.8,4516.7,2.2140058]
[1759710668149,1.6655,4516.8,4516.7,2.2140058]
[1759710668687,2.46,4516.8,4516.7,7.1840058]
[1759710669247,2.46,4516.8,4516.7,7.97597307]
[1759710669444,2.46,4516.8,4516.7,7.1840058]
[1759710669645,2.46,4516.8,4516.7,8.60957307]
[1759710669864,2.46,4516.8,4516.7,17.7212868]
[1759710670073,3.69,4516.8,4516.7,15.63890495]
[1759710670383,1e-08,4517.2,4516.7,13.42489915]
[1759710670595,1e-08,4517.2,4517.1,6.43737858]
[1759710670796,1e-08,4517.2,4517.1,7.81740974]
[1759710670948,0.43550001,4517.2,4517.1,6.27034466]
[1759710671154,0.43550001,4517.2,4517.1,5.0804]
[1759710671457,1.23000001,4517.2,4517.1,10.92537881]
[1759710671679,1.23000001,4517.2,4517.1,10.13188174]
[1759710672769,1.23000001,4517.2,4517.1,10.76548174]
[1759710672986,2.46000001,4517.2,4517.1,7.92780974]
[1759710673200,2.46000001,4517.2,4517.1,27.29010674]
[1759710673360,2.46000001,4517.2,4517.1,30.25099974]
[1759710674085,2.46000001,4517.2,4517.1,7.92780974]
[1759710674601,4.12550001,4517.2,4517.1,0.1104]
[1759710674772,4.12550001,4517.2,4516.7,0.79351357]
[1759710674972,0.4355,4517.1,4516.7,0.79351357]
[1759710675285,0.4355,4517.0,4516.5,0.79351357]
[1759710675472,0.4355,4517.0,4516.4,2.4]
[1759710675473,0.4355,4516.9,4516.4,0.79351357]
[1759710675672,3.69000001,4517.2,4515.6,0.001]
[1759710675673,0.4355,4516.8,4516.2,0.79351357]
[1759710675862,0.4355,4516.7,4516.1,3.36351357]
[1759710676059,0.4355,4516.6,4516.2,2.4]
[1759710676281,0.4355,4516.5,4516.2,2.97635136]
[1759710676552,0.4355,4516.5,4515.8,3.40466728]
[1759710676553,0.4355,4516.4,4515.9,0.79351357]
[1759710676753,0.4355,4516.3,4516.0,2.4]
[1759710677062,0.4355,4516.2,4515.9,3.36351357]
[1759710677261,0.4355,4516.1,4515.8,3.19351357]
[1759710677452,0.4355,4516.0,4515.8,3.19351357]
[1759710677783,1.23,4516.3,4515.8,2.4]
[1759710677784,0.4355,4515.9,4515.8,2.4]
[1759710677986,0.4355,4515.9,4515.6,0.79451357]
[1759710678186,0.4355,4515.8,4515.6,0.001]
[1759710678360,0.45758935,4515.8,4515.6,0.001]
[1759710679204,1.68758935,4515.8,4515.6,0.001]
[1759710679790,2.11324829,4515.8,4515.6,0.001]
[1759710680601,3.34324829,4515.8,4515.6,0.001]
[1759710680982,3.32115894,4515.8,4515.6,0.001]